[Event "Late-Titled-Tuesday-Blitz-July-09-2024"]
[Site "Chess.com"]
[Date "2024.07.09"]
[Round "5"]
[White "Navyblue1"]
[Black "klercaku"]
[Result "1/2-1/2"]
[WhiteElo "2131"]
[BlackElo "2381"]
[TimeControl "180+1"]
[EndTime "14:56:35 PDT"]
[Termination "Game drawn by repetition"]

1. d4 {[%clk 0:02:58.5]} 1... d5 {[%clk 0:03:00.7]} 2. c4 {[%clk 0:02:58.2]}
2... e6 {[%clk 0:03:01.3]} 3. Nc3 {[%clk 0:02:57.4]} 3... Nf6 {[%clk 0:03:01.9]}
4. Bg5 {[%clk 0:02:55.3]} 4... Be7 {[%clk 0:03:02.2]} 5. e3 {[%clk 0:02:52.9]}
5... Nbd7 {[%clk 0:03:02.8]} 6. Nf3 {[%clk 0:02:52.2]} 6... O-O {[%clk
0:03:03.4]} 7. Qc2 {[%clk 0:02:50.7]} 7... Re8 {[%clk 0:03:03.9]} 8. Rd1 {[%clk
0:02:44.6]} 8... Nf8 {[%clk 0:03:00.7]} 9. Be2 {[%clk 0:02:39.4]} 9... dxc4
{[%clk 0:02:59.5]} 10. Bxc4 {[%clk 0:02:40.3]} 10... a6 {[%clk 0:02:58]} 11. a4
{[%clk 0:02:38.3]} 11... h6 {[%clk 0:02:50.4]} 12. Bh4 {[%clk 0:02:37.6]} 12...
Ng6 {[%clk 0:02:50.6]} 13. Bg3 {[%clk 0:02:33.9]} 13... Bd7 {[%clk 0:02:37.3]}
14. O-O {[%clk 0:02:30.7]} 14... Nh5 {[%clk 0:02:30]} 15. Be5 {[%clk 0:02:25.7]}
15... Bd6 {[%clk 0:02:10.9]} 16. Bxd6 {[%clk 0:02:15.2]} 16... cxd6 {[%clk
0:02:10.5]} 17. Bd3 {[%clk 0:02:15.5]} 17... Nf8 {[%clk 0:02:05.6]} 18. Qb3
{[%clk 0:02:13.4]} 18... Rb8 {[%clk 0:02:02.7]} 19. Rfe1 {[%clk 0:02:08.7]}
19... b5 {[%clk 0:01:45.8]} 20. axb5 {[%clk 0:02:08.6]} 20... axb5 {[%clk
0:01:45.4]} 21. Ne4 {[%clk 0:02:03.2]} 21... Rb6 {[%clk 0:01:36.3]} 22. Ra1
{[%clk 0:01:59.1]} 22... Nf6 {[%clk 0:01:29.6]} 23. Nxf6+ {[%clk 0:01:54.3]}
23... Qxf6 {[%clk 0:01:28.5]} 24. e4 {[%clk 0:01:54.5]} 24... Reb8 {[%clk
0:01:25.9]} 25. e5 {[%clk 0:01:52.2]} 25... dxe5 {[%clk 0:01:25.4]} 26. dxe5
{[%clk 0:01:53.1]} 26... Qe7 {[%clk 0:01:16.6]} 27. Be4 {[%clk 0:01:52.7]} 27...
Bc6 {[%clk 0:01:11]} 28. Bxc6 {[%clk 0:01:46.6]} 28... Rxc6 {[%clk 0:01:10.8]}
29. Rec1 {[%clk 0:01:46.1]} 29... Rxc1+ {[%clk 0:01:04.8]} 30. Rxc1 {[%clk
0:01:44.9]} 30... Ng6 {[%clk 0:01:05]} 31. g3 {[%clk 0:01:39.6]} 31... Qa7
{[%clk 0:00:43.5]} 32. h4 {[%clk 0:01:17.1]} 32... Ne7 {[%clk 0:00:35.5]} 33.
Nd2 {[%clk 0:00:59.7]} 33... Nd5 {[%clk 0:00:29.6]} 34. Qd3 {[%clk 0:00:55.5]}
34... Qa2 {[%clk 0:00:22.7]} 35. Qc2 {[%clk 0:00:52.5]} 35... Qa7 {[%clk
0:00:19.7]} 36. Qc5 {[%clk 0:00:46.2]} 36... Qa2 {[%clk 0:00:16]} 37. Rc2 {[%clk
0:00:40.3]} 37... Qa1+ {[%clk 0:00:15.7]} 38. Kg2 {[%clk 0:00:39.6]} 38... Qe1
{[%clk 0:00:14.7]} 39. Nf3 {[%clk 0:00:30.6]} 39... Qe4 {[%clk 0:00:13.2]} 40.
Rd2 {[%clk 0:00:21.9]} 40... Qa4 {[%clk 0:00:10]} 41. Qd4 {[%clk 0:00:18.5]}
41... Qb3 {[%clk 0:00:08.4]} 42. Qd3 {[%clk 0:00:18]} 42... Qa4 {[%clk
0:00:08.3]} 43. Qd4 {[%clk 0:00:17.6]} 43... b4 {[%clk 0:00:08.9]} 44. Qc4
{[%clk 0:00:14.9]} 44... Qa1 {[%clk 0:00:07.9]} 45. Nd4 {[%clk 0:00:12]} 45...
Qe1 {[%clk 0:00:06.3]} 46. Nf3 {[%clk 0:00:11.1]} 46... Qa1 {[%clk 0:00:05.5]}
47. Nd4 {[%clk 0:00:11]} 47... Qa8 {[%clk 0:00:04.9]} 48. Nf3 {[%clk 0:00:10.4]}
48... Rb7 {[%clk 0:00:04.7]} 49. Qe4 {[%clk 0:00:10.1]} 49... Qb8 {[%clk
0:00:04.9]} 50. h5 {[%clk 0:00:07.6]} 50... Rc7 {[%clk 0:00:04.9]} 51. Re2
{[%clk 0:00:07.1]} 51... Qb5 {[%clk 0:00:05]} 52. Rd2 {[%clk 0:00:06.3]} 52...
Qc4 {[%clk 0:00:04.4]} 53. Qxc4 {[%clk 0:00:04.5]} 53... Rxc4 {[%clk 0:00:05.3]}
54. Re2 {[%clk 0:00:04]} 54... b3 {[%clk 0:00:04.9]} 55. Rd2 {[%clk 0:00:03.4]}
55... Rc2 {[%clk 0:00:04.7]} 56. Kf1 {[%clk 0:00:02]} 56... Nb4 {[%clk
0:00:04.4]} 57. Ke2 {[%clk 0:00:02]} 57... Kf8 {[%clk 0:00:03.2]} 58. Nd4 {[%clk
0:00:01.4]} 58... Rxd2+ {[%clk 0:00:02.3]} 59. Kxd2 {[%clk 0:00:02.3]} 59... Na2
{[%clk 0:00:01.5]} 60. Nxb3 {[%clk 0:00:02.3]} 60... Nb4 {[%clk 0:00:02.4]} 61.
Nd4 {[%clk 0:00:02.3]} 61... Nd5 {[%clk 0:00:02.7]} 62. f4 {[%clk 0:00:02.3]}
62... Ke7 {[%clk 0:00:03.1]} 63. Ne2 {[%clk 0:00:02]} 63... Kd7 {[%clk
0:00:03.6]} 64. Nc3 {[%clk 0:00:02.2]} 64... Nb6 {[%clk 0:00:02.9]} 65. b3
{[%clk 0:00:01.6]} 65... Kc6 {[%clk 0:00:03.3]} 66. Kd3 {[%clk 0:00:01.9]} 66...
Kc5 {[%clk 0:00:03.2]} 67. Na4+ {[%clk 0:00:02]} 67... Nxa4 {[%clk 0:00:03.1]}
68. bxa4 {[%clk 0:00:02.4]} 68... Kb4 {[%clk 0:00:03.8]} 69. g4 {[%clk
0:00:02.7]} 69... Kxa4 {[%clk 0:00:04]} 70. Kc4 {[%clk 0:00:02.2]} 70... Ka5
{[%clk 0:00:04.2]} 71. Kc5 {[%clk 0:00:02.4]} 71... Ka4 {[%clk 0:00:04.9]} 72.
Kd6 {[%clk 0:00:02.5]} 72... Kb4 {[%clk 0:00:05.6]} 73. f5 {[%clk 0:00:02]}
73... Kc4 {[%clk 0:00:06.3]} 74. fxe6 {[%clk 0:00:01.5]} 74... fxe6 {[%clk
0:00:07.2]} 75. Kxe6 {[%clk 0:00:01.7]} 75... Kd4 {[%clk 0:00:07.2]} 76. Kf5
{[%clk 0:00:02.3]} 76... Kd5 {[%clk 0:00:07.4]} 77. Kf4 {[%clk 0:00:01.3]} 77...
Ke6 {[%clk 0:00:07.6]} 78. Ke4 {[%clk 0:00:01.6]} 78... Ke7 {[%clk 0:00:08.3]}
79. Kd5 {[%clk 0:00:01.6]} 79... Kd7 {[%clk 0:00:09.2]} 80. e6+ {[%clk
0:00:01.2]} 80... Ke7 {[%clk 0:00:10.1]} 81. Ke5 {[%clk 0:00:01.5]} 81... Ke8
{[%clk 0:00:11]} 82. Kd6 {[%clk 0:00:01.7]} 82... Kd8 {[%clk 0:00:11.4]} 83. Ke5
{[%clk 0:00:01]} 83... Ke8 {[%clk 0:00:12.3]} 84. Kf5 {[%clk 0:00:01.3]} 84...
Ke7 {[%clk 0:00:13.2]} 85. Ke5 {[%clk 0:00:01.7]} 85... Ke8 {[%clk 0:00:13.5]}
1/2-1/2

[Event "Late-Titled-Tuesday-Blitz-July-09-2024"]
[Site "Chess.com"]
[Date "2024.07.09"]
[Round "5"]
[White "Arystanner"]
[Black "djano"]
[Result "1-0"]
[WhiteElo "2895"]
[BlackElo "2593"]
[TimeControl "180+1"]
[EndTime "14:56:51 PDT"]
[Termination "Arystanner won on time"]

1. d4 {[%clk 0:02:55.8]} 1... d5 {[%clk 0:03:00.1]} 2. Nf3 {[%clk 0:02:55.8]}
2... Nf6 {[%clk 0:02:59.2]} 3. c4 {[%clk 0:02:56.5]} 3... c6 {[%clk 0:02:59.3]}
4. Nc3 {[%clk 0:02:56.9]} 4... a6 {[%clk 0:02:59.5]} 5. g3 {[%clk 0:02:56.8]}
5... g6 {[%clk 0:02:59.4]} 6. Bg2 {[%clk 0:02:56.4]} 6... Bg7 {[%clk 0:02:59.9]}
7. O-O {[%clk 0:02:56.6]} 7... O-O {[%clk 0:03:00.5]} 8. Qb3 {[%clk 0:02:44.6]}
8... b5 {[%clk 0:02:57.9]} 9. cxd5 {[%clk 0:02:43.7]} 9... cxd5 {[%clk
0:02:58.8]} 10. a4 {[%clk 0:02:43.4]} 10... bxa4 {[%clk 0:02:54.9]} 11. Nxa4
{[%clk 0:02:41.6]} 11... Nc6 {[%clk 0:02:45.5]} 12. Bf4 {[%clk 0:02:40.6]} 12...
Bf5 {[%clk 0:02:34.7]} 13. Rfc1 {[%clk 0:02:32.7]} 13... Na5 {[%clk 0:02:33.8]}
14. Qb4 {[%clk 0:02:26.5]} 14... Nc4 {[%clk 0:02:25.4]} 15. b3 {[%clk
0:02:15.2]} 15... Nd6 {[%clk 0:02:25.6]} 16. Bxd6 {[%clk 0:02:12]} 16... exd6
{[%clk 0:02:25.4]} 17. e3 {[%clk 0:01:57.8]} 17... Rb8 {[%clk 0:02:16.9]} 18.
Qa3 {[%clk 0:01:57.9]} 18... Ne4 {[%clk 0:02:10.8]} 19. Nc3 {[%clk 0:01:58.1]}
19... Be6 {[%clk 0:01:45.4]} 20. Nxe4 {[%clk 0:01:51.5]} 20... dxe4 {[%clk
0:01:45.3]} 21. Nd2 {[%clk 0:01:52.2]} 21... d5 {[%clk 0:01:30]} 22. Qxa6 {[%clk
0:01:51.9]} 22... h5 {[%clk 0:01:30.5]} 23. h4 {[%clk 0:01:51.5]} 23... g5
{[%clk 0:01:28.1]} 24. hxg5 {[%clk 0:01:51.8]} 24... Qxg5 {[%clk 0:01:29]} 25.
Qd6 {[%clk 0:01:51.1]} 25... Qg6 {[%clk 0:01:17.4]} 26. Kh2 {[%clk 0:01:27]}
26... Bh6 {[%clk 0:01:10.2]} 27. Bh3 {[%clk 0:01:15.1]} 27... Bxh3 {[%clk
0:01:02.6]} 28. Qxg6+ {[%clk 0:01:13.5]} 28... fxg6 {[%clk 0:01:03.5]} 29. Kxh3
{[%clk 0:01:13.6]} 29... Rxf2 {[%clk 0:01:04.1]} 30. Nf1 {[%clk 0:01:09.3]}
30... Rxb3 {[%clk 0:00:56.8]} 31. Rc6 {[%clk 0:01:09.4]} 31... Kg7 {[%clk
0:00:41.1]} 32. Raa6 {[%clk 0:00:58.5]} 32... Rxf1 {[%clk 0:00:39.7]} 33. Rxg6+
{[%clk 0:00:58.8]} 33... Kf7 {[%clk 0:00:39.5]} 34. Rxh6 {[%clk 0:00:59.4]}
34... Rxe3 {[%clk 0:00:29.7]} 35. Rh7+ {[%clk 0:00:29.9]} 35... Kg8 {[%clk
0:00:29.7]} 36. Rd7 {[%clk 0:00:30.6]} 36... Ref3 {[%clk 0:00:23.9]} 37. Rxd5
{[%clk 0:00:23.4]} 37... e3 {[%clk 0:00:17.9]} 38. Re6 {[%clk 0:00:20.7]} 38...
Kf7 {[%clk 0:00:14]} 39. Re4 {[%clk 0:00:19.6]} 39... Rg1 {[%clk 0:00:11.2]} 40.
Rg5 {[%clk 0:00:16.5]} 40... Re1 {[%clk 0:00:06.9]} 41. Rge5 {[%clk 0:00:10.7]}
41... Rg1 {[%clk 0:00:06.5]} 42. Rg5 {[%clk 0:00:10.9]} 42... Re1 {[%clk
0:00:06.8]} 43. d5 {[%clk 0:00:11.2]} 43... e2 {[%clk 0:00:06.6]} 44. Rge5
{[%clk 0:00:10.1]} 44... Rg1 {[%clk 0:00:06.8]} 45. Rxe2 {[%clk 0:00:09.1]}
45... Rgxg3+ {[%clk 0:00:07]} 46. Kh4 {[%clk 0:00:08.9]} 46... Rg4+ {[%clk
0:00:07.3]} 47. Kxh5 {[%clk 0:00:09.1]} 47... Rg1 {[%clk 0:00:06.6]} 48. Rh2
{[%clk 0:00:08.6]} 48... Kf6 {[%clk 0:00:05.8]} 49. Re6+ {[%clk 0:00:08.8]}
49... Kf5 {[%clk 0:00:05.2]} 50. Re8 {[%clk 0:00:09]} 50... Kf4 {[%clk
0:00:04.1]} 51. Rf8+ {[%clk 0:00:08.8]} 51... Kg3 {[%clk 0:00:03.9]} 52. Rh3+
{[%clk 0:00:08.6]} 52... Kxh3 {[%clk 0:00:03.2]} 53. Rxf3+ {[%clk 0:00:09.5]}
53... Kg2 {[%clk 0:00:03.2]} 54. Rd3 {[%clk 0:00:10.2]} 54... Rh1+ {[%clk
0:00:02.8]} 55. Kg4 {[%clk 0:00:10.1]} 55... Kf2 {[%clk 0:00:02.7]} 56. d6
{[%clk 0:00:10.4]} 56... Ke2 {[%clk 0:00:03.6]} 57. d7 {[%clk 0:00:10.8]} 57...
Kxd3 {[%clk 0:00:03.5]} 58. d8=Q+ {[%clk 0:00:11.2]} 58... Ke2 {[%clk
0:00:03.9]} 59. Qd5 {[%clk 0:00:11.1]} 59... Re1 {[%clk 0:00:03.5]} 60. Qc4+
{[%clk 0:00:11.1]} 60... Kd2 {[%clk 0:00:03.6]} 61. Kf4 {[%clk 0:00:11.1]} 61...
Re2 {[%clk 0:00:04]} 62. Qa2+ {[%clk 0:00:11.1]} 62... Ke1 {[%clk 0:00:03.5]}
63. Qb3 {[%clk 0:00:11.1]} 63... Kd2 {[%clk 0:00:03.7]} 64. Kf3 {[%clk
0:00:10.5]} 64... Re1 {[%clk 0:00:02.7]} 65. Qb2+ {[%clk 0:00:10.6]} 65... Kd3
{[%clk 0:00:02.1]} 66. Kf2 {[%clk 0:00:09.2]} 66... Re4 {[%clk 0:00:01.8]} 67.
Qa2 {[%clk 0:00:08.2]} 67... Kd4 {[%clk 0:00:02.7]} 68. Qb3 {[%clk 0:00:08.1]}
68... Ke5 {[%clk 0:00:02.8]} 69. Kf3 {[%clk 0:00:08.5]} 69... Rf4+ {[%clk
0:00:03.1]} 70. Ke3 {[%clk 0:00:09.1]} 70... Rf5 {[%clk 0:00:03.7]} 71. Qb5+
{[%clk 0:00:09.1]} 71... Ke6 {[%clk 0:00:03.2]} 72. Qc6+ {[%clk 0:00:09.1]}
72... Ke5 {[%clk 0:00:03.8]} 73. Qb6 {[%clk 0:00:09.3]} 73... Rf6 {[%clk
0:00:03.6]} 74. Qc5+ {[%clk 0:00:09.6]} 74... Ke6 {[%clk 0:00:04.1]} 75. Ke4
{[%clk 0:00:10.2]} 75... Kf7 {[%clk 0:00:04.4]} 76. Qd4 {[%clk 0:00:08.3]} 76...
Kg6 {[%clk 0:00:04.8]} 77. Qd8 {[%clk 0:00:07.2]} 77... Re6+ {[%clk 0:00:04.5]}
78. Kf4 {[%clk 0:00:07.6]} 78... Rf6+ {[%clk 0:00:05.4]} 79. Kg4 {[%clk
0:00:08.2]} 79... Re6 {[%clk 0:00:05.3]} 80. Qg8+ {[%clk 0:00:07.9]} 80... Kf6
{[%clk 0:00:05.9]} 81. Qg5+ {[%clk 0:00:08.3]} 81... Kf7 {[%clk 0:00:06.5]} 82.
Kf5 {[%clk 0:00:09]} 82... Rd6 {[%clk 0:00:05.6]} 83. Qh5+ {[%clk 0:00:09.2]}
83... Ke7 {[%clk 0:00:05.7]} 84. Qh7+ {[%clk 0:00:09.4]} 84... Kd8 {[%clk
0:00:06.2]} 85. Ke5 {[%clk 0:00:10]} 85... Rc6 {[%clk 0:00:06.6]} 86. Kd5 {[%clk
0:00:10]} 86... Rb6 {[%clk 0:00:04.8]} 87. Qg7 {[%clk 0:00:09.5]} 87... Kc8
{[%clk 0:00:04.3]} 88. Kc5 {[%clk 0:00:09.5]} 88... Ra6 {[%clk 0:00:03.5]} 89.
Qe7 {[%clk 0:00:08.8]} 89... Kb8 {[%clk 0:00:02.2]} 90. Kb5 {[%clk 0:00:09.4]}
1-0

[Event "Late-Titled-Tuesday-Blitz-July-09-2024"]
[Site "Chess.com"]
[Date "2024.07.09"]
[Round "5"]
[White "WildTricks"]
[Black "andrejljepic"]
[Result "0-1"]
[WhiteElo "2699"]
[BlackElo "2490"]
[TimeControl "180+1"]
[EndTime "14:57:16 PDT"]
[Termination "andrejljepic won by resignation"]

1. d4 {[%clk 0:03:00.9]} 1... Nf6 {[%clk 0:02:56.5]} 2. c4 {[%clk 0:03:00.8]}
2... c5 {[%clk 0:02:53.9]} 3. d5 {[%clk 0:03:00.2]} 3... e5 {[%clk 0:02:53.8]}
4. Nc3 {[%clk 0:02:57.8]} 4... d6 {[%clk 0:02:52]} 5. e4 {[%clk 0:02:57.5]} 5...
Be7 {[%clk 0:02:51.5]} 6. h3 {[%clk 0:02:55.4]} 6... O-O {[%clk 0:02:51.3]} 7.
Nf3 {[%clk 0:02:53.9]} 7... a6 {[%clk 0:02:49]} 8. Qc2 {[%clk 0:02:48.3]} 8...
Ne8 {[%clk 0:02:48.7]} 9. Bd3 {[%clk 0:02:47.6]} 9... g6 {[%clk 0:02:48.1]} 10.
g4 {[%clk 0:02:45.8]} 10... Ng7 {[%clk 0:02:43.2]} 11. Bh6 {[%clk 0:02:43]}
11... Nd7 {[%clk 0:02:41]} 12. a3 {[%clk 0:02:33.8]} 12... Nf6 {[%clk 0:02:40]}
13. O-O-O {[%clk 0:02:30]} 13... Kh8 {[%clk 0:02:40.3]} 14. Rdg1 {[%clk
0:02:27.8]} 14... Ng8 {[%clk 0:02:40.6]} 15. Be3 {[%clk 0:02:26.9]} 15... Bd7
{[%clk 0:02:27.4]} 16. h4 {[%clk 0:02:21.3]} 16... f6 {[%clk 0:02:11.8]} 17. h5
{[%clk 0:02:10.3]} 17... g5 {[%clk 0:02:11.9]} 18. h6 {[%clk 0:02:10.5]} 18...
Ne8 {[%clk 0:02:10.4]} 19. Nd2 {[%clk 0:02:10.7]} 19... Qb8 {[%clk 0:02:04.5]}
20. a4 {[%clk 0:02:05.8]} 20... Bd8 {[%clk 0:02:02.5]} 21. Nb3 {[%clk
0:01:57.3]} 21... Ne7 {[%clk 0:01:56.6]} 22. Kd2 {[%clk 0:01:55.5]} 22... Ng6
{[%clk 0:01:55.5]} 23. f3 {[%clk 0:01:54.7]} 23... Nc7 {[%clk 0:01:46.8]} 24.
Ra1 {[%clk 0:01:48.2]} 24... b6 {[%clk 0:01:38.9]} 25. Ke2 {[%clk 0:01:44.1]}
25... Qb7 {[%clk 0:01:33.9]} 26. Nd2 {[%clk 0:01:40.7]} 26... Rb8 {[%clk
0:01:31.4]} 27. Qb3 {[%clk 0:01:25]} 27... Be7 {[%clk 0:01:27.9]} 28. Nf1 {[%clk
0:01:21.6]} 28... Rf7 {[%clk 0:01:17.3]} 29. Ng3 {[%clk 0:01:20.7]} 29... Bf8
{[%clk 0:01:17.7]} 30. Nf5 {[%clk 0:01:18]} 30... a5 {[%clk 0:01:04]} 31. Nb5
{[%clk 0:01:03.7]} 31... Nxb5 {[%clk 0:01:00.5]} 32. cxb5 {[%clk 0:01:01.2]}
32... Bxf5 {[%clk 0:00:54.5]} 33. gxf5 {[%clk 0:01:00.4]} 33... Nf4+ {[%clk
0:00:54.6]} 34. Bxf4 {[%clk 0:00:55.8]} 34... exf4 {[%clk 0:00:54.8]} 35. Bc4
{[%clk 0:00:53.1]} 35... Qe7 {[%clk 0:00:54.3]} 36. Qc3 {[%clk 0:00:50.7]} 36...
Re8 {[%clk 0:00:53.1]} 37. Rag1 {[%clk 0:00:47.9]} 37... Qe5 {[%clk 0:00:47.1]}
38. Kd3 {[%clk 0:00:42.1]} 38... Qd4+ {[%clk 0:00:37.8]} 39. Qxd4 {[%clk
0:00:40.4]} 39... cxd4 {[%clk 0:00:38.2]} 40. Kxd4 {[%clk 0:00:40.3]} 40... Rc7
{[%clk 0:00:38.7]} 41. Rc1 {[%clk 0:00:38.8]} 41... Rec8 {[%clk 0:00:34.8]} 42.
b3 {[%clk 0:00:37.5]} 42... Rc5 {[%clk 0:00:33]} 43. Rc2 {[%clk 0:00:36]} 43...
Kg8 {[%clk 0:00:31.8]} 44. Rh5 {[%clk 0:00:25.3]} 44... Kh8 {[%clk 0:00:25.2]}
45. Kd3 {[%clk 0:00:23.7]} 45... Be7 {[%clk 0:00:25.5]} 46. Rh1 {[%clk
0:00:17.9]} 46... Rg8 {[%clk 0:00:25.1]} 47. Rg2 {[%clk 0:00:15.2]} 47... Rgc8
{[%clk 0:00:23.6]} 48. Rg4 {[%clk 0:00:15]} 48... Kg8 {[%clk 0:00:19.7]} 49.
Rhg1 {[%clk 0:00:08.4]} 49... Kf7 {[%clk 0:00:19.8]} 50. R1g2 {[%clk 0:00:08]}
50... Bf8 {[%clk 0:00:18.2]} 51. Rh2 {[%clk 0:00:06.4]} 51... Be7 {[%clk
0:00:18.1]} 52. Rh1 {[%clk 0:00:05.2]} 52... R5c7 {[%clk 0:00:18.3]} 53. Rh2
{[%clk 0:00:04.9]} 53... Re8 {[%clk 0:00:17.6]} 54. Rh3 {[%clk 0:00:05.1]} 54...
Rec8 {[%clk 0:00:18]} 55. Rg1 {[%clk 0:00:05]} 55... Rc5 {[%clk 0:00:18.4]} 56.
Rg2 {[%clk 0:00:05.5]} 56... Rg8 {[%clk 0:00:18.9]} 57. Kd4 {[%clk 0:00:05.6]}
57... Rcc8 {[%clk 0:00:19]} 58. Rh5 {[%clk 0:00:05.4]} 58... Bf8 {[%clk
0:00:19.2]} 59. Rg4 {[%clk 0:00:05.7]} 59... Rc5 {[%clk 0:00:19.5]} 60. e5
{[%clk 0:00:05]} 60... fxe5+ {[%clk 0:00:16.8]} 61. Ke4 {[%clk 0:00:05]} 61...
Kf6 {[%clk 0:00:15.8]} 62. Rh1 {[%clk 0:00:04.4]} 62... Rc7 {[%clk 0:00:15.9]}
63. Rh5 {[%clk 0:00:04.5]} 63... Be7 {[%clk 0:00:15.3]} 64. Rh1 {[%clk
0:00:04.2]} 64... Bd8 {[%clk 0:00:15.8]} 65. Rh5 {[%clk 0:00:04.7]} 65... Kf7
{[%clk 0:00:16.2]} 66. Rh1 {[%clk 0:00:05.2]} 66... Bf6 {[%clk 0:00:16.9]} 67.
Rh5 {[%clk 0:00:05.4]} 67... Kf8 {[%clk 0:00:16.8]} 68. Rh1 {[%clk 0:00:05.7]}
68... Rf7 {[%clk 0:00:16.8]} 69. Rh5 {[%clk 0:00:06.2]} 69... Rc7 {[%clk
0:00:17.1]} 70. Rh1 {[%clk 0:00:06.8]} 70... Kf7 {[%clk 0:00:17.4]} 71. Rh5
{[%clk 0:00:07.3]} 71... Rgc8 {[%clk 0:00:18]} 72. Rh1 {[%clk 0:00:07.7]} 72...
Kf8 {[%clk 0:00:17.3]} 73. Kd3 {[%clk 0:00:07.6]} 73... e4+ {[%clk 0:00:14.4]}
74. fxe4 {[%clk 0:00:06.7]} 74... Re7 {[%clk 0:00:14.8]} 75. Re1 {[%clk
0:00:06]} 75... Rce8 {[%clk 0:00:14.7]} 76. Re2 {[%clk 0:00:05.5]} 76... Kf7
{[%clk 0:00:15.2]} 77. Rg1 {[%clk 0:00:04.8]} 77... Rg8 {[%clk 0:00:15.1]} 78.
Rg4 {[%clk 0:00:04]} 78... Be5 {[%clk 0:00:14.8]} 79. Rf2 {[%clk 0:00:04.1]}
79... Kf6 {[%clk 0:00:15.2]} 80. Rf3 {[%clk 0:00:04.6]} 80... Rc7 {[%clk
0:00:15.2]} 81. Kd2 {[%clk 0:00:04.7]} 81... Bd4 {[%clk 0:00:15.3]} 82. Kd3
{[%clk 0:00:04.9]} 82... Ke5 {[%clk 0:00:15.1]} 83. Rf1 {[%clk 0:00:03.7]} 83...
Be3 {[%clk 0:00:12.5]} 84. Rf3 {[%clk 0:00:03.8]} 84... Kf6 {[%clk 0:00:11.8]}
85. Rf1 {[%clk 0:00:03.1]} 85... Ke5 {[%clk 0:00:12.5]} 86. Rf3 {[%clk
0:00:03.3]} 86... Rf7 {[%clk 0:00:13.1]} 87. Rf1 {[%clk 0:00:03.6]} 87... Rf6
{[%clk 0:00:13.7]} 88. Rf3 {[%clk 0:00:04.1]} 88... Rxh6 {[%clk 0:00:13.7]} 89.
Rxe3 {[%clk 0:00:02.4]} 89... fxe3 {[%clk 0:00:13.5]} 90. Kxe3 {[%clk
0:00:03.3]} 90... Rh3+ {[%clk 0:00:14]} 91. Kd2 {[%clk 0:00:03.3]} 91... h5
{[%clk 0:00:14.7]} 92. Rg1 {[%clk 0:00:03.8]} 92... g4 {[%clk 0:00:14.9]} 93.
Rf1 {[%clk 0:00:04.5]} 93... g3 {[%clk 0:00:15]} 94. f6 {[%clk 0:00:04.7]} 94...
g2 {[%clk 0:00:15.5]} 95. Rf5+ {[%clk 0:00:04.4]} 95... Kd4 {[%clk 0:00:12.8]}
96. f7 {[%clk 0:00:05.3]} 96... g1=Q {[%clk 0:00:13]} 97. fxg8=Q {[%clk
0:00:04.7]} 97... Qxg8 {[%clk 0:00:13.5]} 98. Rf2 {[%clk 0:00:04.8]} 98... Qg5+
{[%clk 0:00:13.2]} 99. Kc2 {[%clk 0:00:05]} 99... Qe3 {[%clk 0:00:12]} 100. Rd2+
{[%clk 0:00:05.4]} 100... Kc5 {[%clk 0:00:12.6]} 101. Rd3 {[%clk 0:00:05.7]}
101... Qxd3+ {[%clk 0:00:11.2]} 102. Bxd3 {[%clk 0:00:05.3]} 102... Kd4 {[%clk
0:00:11.6]} 0-1